Workbook

Sheet Útmutató
A1: Saját bevételek rezsi nyilvántartási algoritmusa: alapadatok leírása
A3: Rekord típus
A5: A oszlop: | B5: "A": szerződés azonosító rekord, a szerződés alapadatait tárolja "T": tervezett bevételi rekord, a szerződés egy adott időpontra tervezett bevételét rögzíti "B": bevételi rekord, a felette lévő "T" rekordban rögzített tervezett bevétel tényszerű megvalósulását rögzíti (Amennyiben egy tervezett bevétel több részletben érkezik be, ezek további "B" rekordokban rögzíthetők.) "S": szumma, szerződés összegző rekord, a beérkezett bevételek és tartozások összege az adott szerződésre "M": mindösszesen, az adott szervezeti egység összes szerződésének bevételi és tartozási összege
A7: Szerződés azonosító adatok
A9: B oszlop: | B9: szerződés (pályázat vagy ipari megbízás) rövid neve
A10: C oszlop: | B10: témavezető neve
A11: D oszlop: | B11: futamidő kezdete (dátum: éééé.hh.nn)
A12: E oszlop: | B12: futamidő vége (dátum: éééé.hh.nn)
A13: F oszlop: | B13: rezsifizetés halasztási dátuma (dátum: éééé.hh.nn)
A14: G oszlop: | B14: témaszám (5 jegyű numerikus)
A15: H oszlop: | B15: a szerződés által meghatározott (ennek hiányában belső megállapodás által rögzített) maximális rezsiszorzó mérték (százalék)
A17: Bevételek pénzforgalmi adatai
A19: I oszlop: | B19: bevétel tervezett összege (Ft)
A20: J oszlop: | B20: bevétel esedékessége, tervezett időpontja (dátum: éééé.hh.nn)
A21: K oszlop: | B21: bevétel tény (Ft)
A22: L oszlop: | B22: bevétel időpontja (dátum: éééé.hh.nn) Amennyiben a tervezett bevétel több részletben érkezik, az első bevételi részletet egy "A" vagy "B" típusú rekordban, minden további részletet külön "R" típusú rekordokban kell feltüntetni.
A24: Rezsi befizetések megvalósulása
A26: M oszlop: | B26: a bevételre alkalmazandó rezsiszabály (három karakteres kód: Téé, leírása a "Rezsiszabályok" lapon)
A27: N oszlop: | B27: a befizethető maximális rezsi összege (Ft)
A28: O oszlop: | B28: egyetemi rezsi kötelezettség (Ft)
A29: P oszlop: | B29: kari rezsi kötelezettség (Ft)
A30: Q oszlop: | B30: intézeti rezsi (Ft) Amennyiben értéke negatív, az intézetnek befizetési kötelezettsége jelentkezik a karral szemben, mivel a maximális befizethető rezsi nem fedezi az egyetemi és kari rezsi kötelezettséget.
A31: R oszlop: | B31: tanszéki rezsi (Ft) Amennyiben itt pozitív összeg jelentkezik (a maximálisan levonható rezsiből az egyetemi, kari és intézeti rezsik után fennmaradó összeg), a tanszék, ill. a projekt ezt az összeget visszakapja.
A32: S oszlop: | B32: a teljes rezsi összeg átadásának időpontja a karra a rezsi gyűjtőszámláról (dátum: éééé.hh.nn)
A33: T oszlop: | B33: az intézeti rezsi visszaadásának időpontja (dátum: éééé.hh.nn)
A34: U oszlop: | B34: az tanszéki rezsi visszaadásának időpontja (dátum: éééé.hh.nn)
A35: V oszlop: | B35: az egyetemi rezsi átadásnak időpontja a GMF-re (dátum: éééé.hh.nn)
A37: Önrész megelőlegezés a karról
A39: W oszlop: | B39: írásos megállapodás alapján (az intézetigazgató ellenjegyzésével) a kar által nyújtott előleg összege pályázati önrész képzésére (Ft)
A40: X oszlop: | B40: az írásos megállapodásban rögzített törlesztési határidő (dátum: éééé.hh.nn)
A41: Y oszlop: | B41: az önrész előleg folyósításának időpontja (dátum: éééé.hh.nn)
A42: Z oszlop: | B42: az önrész előleg törlesztésének időpontja (dátum: éééé.hh.nn)
A44: Tartozások összesen
A46: AA oszlop: | B46: a szerződés összes tartozása a kar felé (még be nem fizetett rezsi és nem törlesztett önrész előleg összege) (Ft)
A47: AB oszlop: | B47: a kar még meg nem fizetett tartozása az intézetnek (ha az intézet amiatt tartozik a karnak, mert a maximálisan befizetett rezsi nem fedezi a kötelező egyetemi és kari rezsi összegét, akkor itt negatív szám áll) (Ft)
A48: AC oszlop: | B48: a kar még meg nem fizetett tartozása a tanszéknek (Ft)
A49: AD oszlop: | B49: a kar még be nem fizetett tartozása a GMF-nek (egyetemi rezsi) (Ft)
A51: Ebből esedékes tartozás
A52: A rezsi be- és kifizetések cellái (N - R oszlopok), és a W önrész megelőlegezés oszlop cellája sárga háttéren jelennek meg, ha az adott összeg kifizetése esedékessé válik.
A54: AE oszlop: | B54: az AA oszlop összegének az a része, amely már lejárt tartozás (nem tartalmazza a rezsihalasztás határideje előtti rezsibefizetési kötelezettséget, illetve az önrész előleg törlesztési határideje előtti önrész előleget) (Ft)
A55: AF oszlop: | B55: az AB oszlop összegének az a része, amely már lejárt tartozás (nem tartalmazza a rezsihalasztás határideje előtti rezsibefizetési kötelezettségből fakadó intézeti rezsi részt, valamint azt a kari tartozást sem, amely a szerződés által még be nem fizetett rezsinek az intézeti része lenne) (Ft) (Az intézet tartozásának esedékessége megegyezik a szerződés rezsi fizetési kötelezettségének esedékességi dátumával.)
A56: AG oszlop: | B56: az AC oszlop összegének az a része, amely már lejárt tartozás (nem tartalmazza a rezsihalasztás határideje előtti rezsibefizetési kötelezettségből fakadó tanszéki rezsi részt, valamint azt a kari tartozást sem, amely a szerződés által még be nem fizetett rezsinek a tanszéki része lenne) (Ft)
A57: AH oszlop: | B57: az AD oszlop összegének az a része, amely már lejárt tartozás (nem tartalmazza a rezsihalasztás határideje előtti rezsibefizetési kötelezettségből fakadó egyetemi rezsit) (Ft)

Sheet Rezsiszabály
A1: Rezsiszabály táblázat
A3: Magyarázat Érvényes: Az a költségvetési év, amelyben ez a szabály alkalmazandó ("éééé" alakban). Típus: 1 karakteres kód, értéke az A … Z (nagybetűk) közül választható, az adott költségvetési évben érvényes szabály típusa. "A" az alapértelmezés szerinti sajátbevételi szabály, "B" az alapértelmezés szerinti oktatási bevétel rezsi szabálya, a "C"..."Z" karakterek a kivételes kezelést igénylő esetek szabályai. Kód: A rezsiszabályt azonosító 3 karakteres kód, "Téé" alakban. Automatikusan képződik a "T" típuskódból, és az érvényességi év utolsó két karakteréből. Egyetemi rezsi: Rezsiszorzó mérték (%). Minden bevételre fizetendő. Kari rezsi: Rezsiszorzó mérték (%). Minden bevételre fizetendő. Intézeti rezsi: Rezsiszorzó mérték (%). Maximális érték. Az intézetnek átadandó. A rezsiszabály táblázat bővítése/rövidítése A táblázat a színezett sorokban tartalmazza a kitöltéséhez szükséges függvényeket. A táblázat tetszőleges számú sorral kiegészíthető egy színezett üres sor lemásolásával a táblázat alá. A táblázat sorai törölhetők is. Erre akkor lehet szükség, ha egy régi érvényességű szabályt már nem használunk a rezsielszámolásoknál. A törlés azért hasznos, mert a legördülő menük hosszát lerövidíti, ezáltal az áttekinthetőséget növeli. A rezsiszabályok sorrendje tetszőleges lehet. Amire figyelni kell: A rezsiszabályok között nem lehet üres sor! Hibajelzések új szabály bevitelekor - Az érvényesség évének és a típusnak is kitöltöttnek kell lennie. Ellenkező esetben a kód értéke piros betűkkel világít. - Az új szabály kódja nem lehet azonos egyik korábbi kóddal sem. Az azonos kódok hátterei pirossá válnak.
A5: Szabály azonosító | D5: Rezsiszorzó | G5: Leírás
A6: Érvényes | B6: Típus | C6: Kód | D6: egyetemi | E6: kari | F6: intézeti
A7: 2014 | B7: A | C7: =B7&RIGHT(TEXT(A7,"#"),2) -> A14 | D7: 0.08 | E7: 0.015 | F7: 0.075 | G7: Alapértelmezett szabály
A8: 2014 | B8: B | C8: =B8&RIGHT(TEXT(A8,"#"),2) -> B14 | D8: 0.14 | E8: 0.015 | F8: 0.015 | G8: Oktatási bevételek rezsije
A9: 2013 | B9: A | C9: A13 | D9: 0.1 | E9: 0.07 | F9: 0 | G9: Tavalyi rezsiszabály
A10: 2014 | B10: C | C10: C14 | D10: 0.08 | E10: 0 | F10: 0 | G10: ERC speciális szabály

Sheet Paraméterek
A1: Kézi beállítású paraméterek
A2: Ezek a paraméterek szabályozzák a nyilvántartási algoritmus viselkedését. Értéküket a használat során a felhasználók megváltoztathatják. Leírásukat és felhasználásukat minden paraméternél megadjuk.
A4: Paraméter | B4: Érték | C4: Használati utasítás
A5: Dátumtartomány (könyvelési időszak) kezdete | B5: 2010-01-01 | C5: Adatbeviteli ellenőrzési célra használt érték, a hibás dátumok kiszűrésére. A nyilvántartási algoritmus megakadályozza minden olyan dátum bevitelét, amely ennél az értéknél korábbi. Érdemes a paraméter értékét minél nagyobbra választani, a nagyobb adatmegbízhatóság érdekében. Amennyiben ez az érték túlságosan nagynak bizonyulna, a későbbi felhasználás során a paraméter értéke megváltoztatható. Legkisebb megadható értéke 2000.01.01.
A6: Dátumtartomány (könyvelési időszak) vége | B6: 2030-12-30 | C6: Adatbeviteli ellenőrzési célra használt érték, a hibás dátumok kiszűrésére. A nyilvántartási algoritmus megakadályozza minden olyan dátum bevitelét, amely ennél az értéknél későbbi. Érdemes a paraméter értékét minél kisebbre választani, a nagyobb adatmegbízhatóság érdekében. Amennyiben ez az érték túlságosan kicsinek bizonyulna, a későbbi felhasználás során a paraméter értéke megváltoztatható. A legnagyobb megadható érték nincs korlátozva.
A7: Nyilvántartási időszak kezdete | B7: 2000-01-01 | C7: Kitöltött nyilvántartó munkalap esetén információs célokra használható. Tételezzük fel, hogy a kitöltés során bevittünk 2012-es, 2013-as és 2014-es kezdési idejű projekteket is. Ha kíváncsiak vagyunk arra, hogy mely szerződések indultak 2014-et megelőzően, akkor írjuk be ennek a paraméternek az értékére a 2014.01.01 dátumot. Menjünk át ezután a nyilvántartó munkalapra, ahol színezett háttérrel jelennek meg a projekteknek azok az indulási/befejezési dátumai, amelyek az itt megadott nyilvántartási időszakon kívül esnek. Tájékozódásunk után állítsuk vissza a "Nyilvántartási időszak kezdete" paramétert egy olyan a dátumra, amely az összes nyilvántartani kívánt projekt kezdési időpontja előtt van. A paraméter legkisebb megadható értéke 2000.01.01.
A8: Nyilvántartási időszak vége | B8: 3000-01-01 | C8: Kitöltött nyilvántartó munkalap esetén információs célokra használható. Segítségével tájékozódhatunk arról, hogy mely projektek induló/záró dátuma nem esik az itt megadott nyilvántartási időszakra. A paraméter legnagyobb megadható értéke nincs korlátozva.
A9: Tervezett bevételi időszak kezdete | B9: 2000-01-01 | C9: Kitöltött nyilvántartó munkalap esetén információs célokra használható. Ha egy bevétel tervezett időpontja nem esik az itt megadott tervezett bevételi időszakra, a nyilvántartó munkalapon színezett háttérrel jelenik meg a bevétel tervezett dátuma. Tájékozódás után a paraméter visszaállítható egy 2000.01.01-nél nem korábbi dátumra.
A10: Tervezett bevételi időszak vége | B10: 3000-01-01 | C10: Kitöltött nyilvántartó munkalap esetén információs célokra használható. Ha egy bevétel tervezett időpontja nem esik az itt megadott tervezett bevételi időszakra, a nyilvántartó munkalapon színezett háttérrel jelenik meg a bevétel tervezett dátuma. Tájékozódás után a paraméter visszaállítható egy a tervezett bevételi időszak kezdetét követő dátumra.
A11: Bevételi időszak kezdete | B11: 2000-01-01 | C11: Kitöltött nyilvántartó munkalap esetén információs célokra használható. Ha egy bevétel tényleges időpontja nem esik az itt megadott bevételi időszakra, a nyilvántartó munkalapon színezett háttérrel jelenik meg a bevétel tény dátuma. Tájékozódás után a paraméter visszaállítható egy 2000.01.01-nél nem korábbi dátumra.
A12: Bevételi időszak vége | B12: 3000-01-01 | C12: Kitöltött nyilvántartó munkalap esetén információs célokra használható. Ha egy bevétel tényleges időpontja nem esik az itt megadott bevételi időszakra, a nyilvántartó munkalapon színezett háttérrel jelenik meg a bevétel tény dátuma. Tájékozódás után a paraméter visszaállítható egy a bevételi időszak kezdetét követő dátumra.
A14: Automatikusan beállított paraméterek
A15: Ezek a paraméterek a nyilvántartási algoritmus működéséhez szükséges technikai változók. Értékük automatikusan kerül meghatározásra, a felhasználók által nem változtathatók. Az alábbi táblázat csak információs célokat szolgál.
A17: Paraméter | B17: Érték | C17: Leírás
A18: A rezsiszabályok kezdő sora | B18: =MATCH(TRUE,IF(ISNUMBER(Rezsiszabály!A:A),Rezsiszabály!A:A>=2000),0) -> 7 | C18: A "Rezsiszabály" munkalapon található első olyan sor, ahol érvényes rezsiszabály bejegyzés található.
A19: A rezsiszabályok száma | B19: =COUNTIF(Rezsiszabály!A:A,">=2000") -> 4 | C19: A "Rezsiszabály" munkalapon található érvényes rezsiszabályok száma.
A20: A rezsiszabályok utolsó sora | B20: =B18+B19-1 -> 10 | C20: A "Rezsiszabály" munkalapon található utolsó olyan sor, ahol érvényes rezsiszabály bejegyzés található.
A21: Rezsiszabály tartomány | B21: ="Rezsiszabály!C"&B18&":C"&B20 -> Rezsiszabály!C7:C10 | C21: A "Rezsiszabály" munkalapnak az a tartománya, amely a rezsiszabályok 3 karakteres kódját tartalmazza. Ez határozza meg a rezsiszabály kiválasztásához használt legördülő lista tartalmát.
A22: Szabálykeresési tartomány | B22: ="Rezsiszabály!C"&B18&":F"&B20 -> Rezsiszabály!C7:F10 | C22: A "Rezsiszabály" munkalapnak az a tartománya, amely a rezsiszabályok kódját és a hozzájuk tartozó három rezsiszorzó értéket tartalmazza. Az adott bevétel után befizetendő rezsiösszegek kiszámításánál használjuk.
A24: Szervezeti egységek listája
A25: A nyilvántartási algoritmus működéséhez az szükséges, hogy a szervezeti egységek teljes nevét tartalmazó cellatartomány (az A oszlop része) "UnitNames" elnevezésű legyen. Ez ellenőrizhető például a Képletek lap Definiált nevek csoportjában található Névkezelő gomb segítségével.
A27: A szervezeti egység neve | B27: MGR kód | C27: Lapfül név
A28: Fizikai Intézet | B28: 301 | C28: Fiz. Int.
A29: Atomfizika Tanszék | B29: 302 | C29: Atomfizika
A30: Elméleti Fizika Tanszék | B30: 318 | C30: Elm. Fiz.
A31: Fizika Tanszék | B31: 303 | C31: Fizika
A32: Matematika Intézet | B32: 322 | C32: Mat. Int.
A33: Algebra Tanszék | B33: 323 | C33: Algebra
A34: Analízis Tanszék | B34: 324 | C34: Analízis
A35: Differenciálegyenletek Tanszék | B35: 325 | C35: Diff. Egy.
A36: Geometria Tanszék | B36: 326 | C36: Geometria
A37: Sztochasztika Tanszék | B37: 327 | C37: Sztochasztika
A38: Kognitív Tudományi Tanszék | B38: 340 | C38: KTT
A39: TTK Dékáni Hivatal | B39: 331 | C39: Hivatal
A40: TTK Dékán (közös kari kiadások) | B40: 332 | C40: Közös kari
A41: Nukleáris Technikai Intézet | B41: 308 | C41: NTI
A42: Atomenergetikai Tanszék | B42: 334 | C42: Atomenerg.
A43: Nukleáris Technikai Tanszék | B43: 333 | C43: Nukl.Tech.Tsz.

Sheet Mintasor (hidden)
B1: Nyilvántartó rekordok mintasorai
B3: Az alábbi táblázat azokat a mintasorokat tartalmazza, amelyeket jobb egérgombbal a nyilvántartó munkalapokra másolva bővíthetjük annak sorait. Ezt a munkalapot nem szabad megváltoztatni, bizonyos cellái azonban a beviteli funkciók ellátása miatt nem védettek. Emiatt célszerű a munkalapot rejtett, vagy "very hidden" állapotban tartani. Nyilvántartási rekordok prototípusai Az "A" oszlopban található sortípus jelzés különböző szerepű nyilvántartó rekordokat azonosít: "U": univerzális prototípus projekt rekord, ebből származtatható az alábbi "A", "T" és "B" típus "A": szerződés azonosító rekord, a szerződés alapadatait tárolja "T": tervezett bevételi rekord, a szerződés egy adott időpontra tervezett bevételét rögzíti "B": bevételi rekord, a felette lévő "T" rekordban rögzített tervezett bevétel tényszerű megvalósulását rögzíti (Amennyiben egy tervezett bevétel több részletben érkezik be, ezek további "B" rekordokban rögzíthetők.) "S": szumma, szerződés összegző rekord, a beérkezett bevételek és tartozások összege az adott szerződésre "M": mindösszesen, az adott szervezeti egység összes szerződésének bevételi és tartozási összege (Az "A" oszlopban valójában egy kétkarakteres szöveg áll, KARAKTER(160)&"c" formátumban, ahol a "c" karakter a fenti U, A, T, B, S vagy M betűk egyike.)
A5: =CHAR(160)&"Rekord" -> Rekord | B5: Szerződés azonosító adatok | I5: Bevételek pénzforgalmi adatai | M5: Rezsi befizetések megvalósulása | W5: Önrész megelőlegezés a karról | AA5: Tartozások összesen | AE5: Ebből esedékes tartozás
B6: Rövid név | C6: Témavezető | D6: Futamidő | F6: Rezsi halasztás | G6: Téma- szám | H6: Max. rezsi | I6: Tervezett | K6: Tény | M6: Rezsi- szabály | N6: Rezsi összegek megoszlása | S6: Rezsik átadási időpontja | W6: Előleg összege | X6: Törlesztés határidő | Y6: Átadási időpontok | AA6: szerződés a karnak | AB6: kar | AE6: szerződés a karnak | AF6: kar
D7: kezdete | E7: vége | I7: összeg | J7: időpont | K7: összeg | L7: időpont | N7: levonható | O7: egyetemi | P7: kari | Q7: intézeti | R7: tanszéki | S7: karra | T7: intézetnek | U7: tanszéknek | V7: egyetemnek | Y7: folyósítás | Z7: törlesztés | AB7: intézetnek | AC7: tanszéknek | AD7: egyetemnek | AF7: intézetnek | AG7: tanszéknek | AH7: egyetemnek
A8: =CHAR(160)&"U" -> U | B8: Pályázat 01 | C8: Gipsz Jakab | D8: 2013-01-01 | E8: 2016-01-01 | F8: 2015-01-01 | G8: 12345 | H8: 0.2 | I8: 100000000 | J8: 2014-01-01 | K8: 100000000 | L8: 2014-01-01 | M8: A14 | N8: =K8*H8 -> 20000000 | O8: =K8*VLOOKUP(M8,INDIRECT(Paraméterek!$B$22),2,FALSE) -> 8000000 | P8: =K8*VLOOKUP(M8,INDIRECT(Paraméterek!$B$22),3,FALSE) -> 1500000 | Q8: =MIN(K8*VLOOKUP(M8,INDIRECT(Paraméterek!$B$22),4,FALSE),N8-O8-P8) -> 7500000 | R8: =N8-O8-P8-Q8 -> 3000000 | S8: 2014-01-01 | T8: 2014-01-01 | U8: 2014-01-01 | V8: 2014-01-01 | W8: 15000000 | X8: 2014-01-01 | Y8: 2014-01-01 | Z8: 2014-01-01 | AA8: =IF(S8<>"",0,N8)+IF(AND(Y8<>"",Z8=""),W8,0) -> 0 | AB8: =IF(T8<>"",0,Q8) -> 0 | AC8: =IF(U8<>"",0,R8) -> 0 | AD8: =IF(V8<>"",0,O8) -> 0 | AE8: =IF(OR(S8<>"",TODAY()<F8),0,N8)+IF(AND(Y8<>"",Z8="",TODAY()>=X8),W8,0) -> 0 | AF8: =IF(OR(T8<>"",TODAY()<F8),0,IF(Q8<0,Q8,IF(S8<>"",Q8,0))) -> 0 | AG8: =IF(OR(U8<>"",TODAY()<F8),0,IF(S8<>"",R8,0)) -> 0 | AH8: =IF(OR(V8<>"",TODAY()<F8),0,O8) -> 0
A9: =CHAR(160)&"A" -> A | B9: Pályázat 01 | C9: Gipsz Jakab | D9: 2013-01-01 | E9: 2016-01-01 | G9: 12345 | H9: 0.05
A10: =CHAR(160)&"T" -> T | B10: =OFFSET(B10,-1,0) -> Pályázat 01 | C10: =OFFSET(C10,-1,0) -> Gipsz Jakab | D10: 2013-01-01 | E10: 2016-01-01 | F10: 00:00:00 | G10: 12345 | H10: 0.05 | I10: 100000000 | J10: 2013-01-01
A11: =CHAR(160)&"B" -> B | B11: =OFFSET(B11,-1,0) -> Pályázat 01 | C11: Gipsz Jakab | D11: 2013-01-01 | E11: 2016-01-01 | F11: 00:00:00 | G11: 12345 | H11: 0.05 | K11: 60000000 | L11: 2013-06-30 | M11: A13 | N11: =K11*H11 -> 3000000 | O11: =K11*IF(M11="",0,VLOOKUP(M11,INDIRECT(Paraméterek!$B$22),2,FALSE)) -> 6000000 | P11: =K11*IF(M11="",0,VLOOKUP(M11,INDIRECT(Paraméterek!$B$22),3,FALSE)) -> 4200000 | Q11: =MIN(K11*IF(M11="",0,VLOOKUP(M11,INDIRECT(Paraméterek!$B$22),4,FALSE)),N11-O11-P11) -> -7200000 | R11: =N11-O11-P11-Q11 -> 0 | S11: 2014-01-01 | T11: 2014-01-01 | U11: 2014-01-01 | V11: 2014-01-01 | W11: 15000000 | X11: 2014-01-01 | Y11: 2014-01-01 | AA11: =IF(S11<>"",0,N11)+IF(AND(Y11<>"",Z11=""),W11,0) -> 15000000 | AB11: =IF(T11<>"",0,Q11) -> 0 | AC11: =IF(U11<>"",0,R11) -> 0 | AD11: =IF(V11<>"",0,O11) -> 0 | AE11: =IF(OR(S11<>"",TODAY()<F11),0,N11)+IF(AND(Y11<>"",Z11="",TODAY()>=X11),W11,0) -> 15000000 | AF11: =IF(OR(T11<>"",TODAY()<F11),0,IF(Q11<0,Q11,IF(S11<>"",Q11,0))) -> 0 | AG11: =IF(OR(U11<>"",TODAY()<F11),0,IF(S11<>"",R11,0)) -> 0 | AH11: =IF(OR(V11<>"",TODAY()<F11),0,O11) -> 0
A12: =CHAR(160)&"B" -> B | B12: Pályázat 01 | C12: Gipsz Jakab | D12: 2013-01-01 | E12: 2016-01-01 | F12: 00:00:00 | G12: 12345 | H12: 0.05 | K12: 40000000 | L12: 2013-12-31 | M12: A13 | N12: =K12*H12 -> 2000000 | O12: =K12*IF(M12="",0,VLOOKUP(M12,INDIRECT(Paraméterek!$B$22),2,FALSE)) -> 4000000 | P12: =K12*IF(M12="",0,VLOOKUP(M12,INDIRECT(Paraméterek!$B$22),3,FALSE)) -> 2800000 | Q12: =MIN(K12*IF(M12="",0,VLOOKUP(M12,INDIRECT(Paraméterek!$B$22),4,FALSE)),N12-O12-P12) -> -4800000 | R12: =N12-O12-P12-Q12 -> 0 | S12: 2014-01-01 | T12: 2014-01-01 | U12: 2014-01-01 | V12: 2014-01-01 | W12: 5000000 | X12: 2014-01-01 | Y12: 2014-01-01 | AA12: =IF(S12<>"",0,N12)+IF(AND(Y12<>"",Z12=""),W12,0) -> 5000000 | AB12: =IF(T12<>"",0,Q12) -> 0 | AC12: =IF(U12<>"",0,R12) -> 0 | AD12: =IF(V12<>"",0,O12) -> 0 | AE12: =IF(OR(S12<>"",TODAY()<F12),0,N12)+IF(AND(Y12<>"",Z12="",TODAY()>=X12),W12,0) -> 5000000 | AF12: =IF(OR(T12<>"",TODAY()<F12),0,IF(Q12<0,Q12,IF(S12<>"",Q12,0))) -> 0 | AG12: =IF(OR(U12<>"",TODAY()<F12),0,IF(S12<>"",R12,0)) -> 0 | AH12: =IF(OR(V12<>"",TODAY()<F12),0,O12) -> 0
A13: =CHAR(160)&"T" -> T | B13: Pályázat 01 | C13: Gipsz Jakab | D13: 2013-01-01 | E13: 2016-01-01 | F13: 00:00:00 | G13: 12345 | H13: 0.05 | I13: 50000000 | J13: 2014-06-30
A14: =CHAR(160)&"B" -> B | B14: Pályázat 01 | C14: Gipsz Jakab | D14: 2013-01-01 | E14: 2016-01-01 | F14: 00:00:00 | G14: 12345 | H14: 0.05 | K14: 30000000 | L14: 2014-07-01 | M14: A14 | N14: =K14*H14 -> 1500000 | O14: =K14*IF(M14="",0,VLOOKUP(M14,INDIRECT(Paraméterek!$B$22),2,FALSE)) -> 2400000 | P14: =K14*IF(M14="",0,VLOOKUP(M14,INDIRECT(Paraméterek!$B$22),3,FALSE)) -> 450000 | Q14: =MIN(K14*IF(M14="",0,VLOOKUP(M14,INDIRECT(Paraméterek!$B$22),4,FALSE)),N14-O14-P14) -> -1350000 | R14: =N14-O14-P14-Q14 -> 0 | W14: 15000000 | X14: 2014-01-01 | Y14: 2014-01-01 | Z14: 2014-01-01 | AA14: =IF(S14<>"",0,N14)+IF(AND(Y14<>"",Z14=""),W14,0) -> 1500000 | AB14: =IF(T14<>"",0,Q14) -> -1350000 | AC14: =IF(U14<>"",0,R14) -> 0 | AD14: =IF(V14<>"",0,O14) -> 2400000 | AE14: =IF(OR(S14<>"",TODAY()<F14),0,N14)+IF(AND(Y14<>"",Z14="",TODAY()>=X14),W14,0) -> 1500000 | AF14: =IF(OR(T14<>"",TODAY()<F14),0,IF(Q14<0,Q14,IF(S14<>"",Q14,0))) -> -1350000 | AG14: =IF(OR(U14<>"",TODAY()<F14),0,IF(S14<>"",R14,0)) -> 0 | AH14: =IF(OR(V14<>"",TODAY()<F14),0,O14) -> 2400000
A15: =CHAR(160)&"B" -> B | B15: Pályázat 01 | C15: Gipsz Jakab | D15: 2013-01-01 | E15: 2016-01-01 | F15: 00:00:00 | G15: 12345 | H15: 0.05 | K15: 20000000 | L15: 2014-07-10 | M15: A14 | N15: =K15*H15 -> 1000000 | O15: =K15*IF(M15="",0,VLOOKUP(M15,INDIRECT(Paraméterek!$B$22),2,FALSE)) -> 1600000 | P15: =K15*IF(M15="",0,VLOOKUP(M15,INDIRECT(Paraméterek!$B$22),3,FALSE)) -> 300000 | Q15: =MIN(K15*IF(M15="",0,VLOOKUP(M15,INDIRECT(Paraméterek!$B$22),4,FALSE)),N15-O15-P15) -> -900000 | R15: =N15-O15-P15-Q15 -> 0 | W15: 15000000 | X15: 2014-01-01 | Y15: 2014-01-01 | Z15: 2014-01-01 | AA15: =IF(S15<>"",0,N15)+IF(AND(Y15<>"",Z15=""),W15,0) -> 1000000 | AB15: =IF(T15<>"",0,Q15) -> -900000 | AC15: =IF(U15<>"",0,R15) -> 0 | AD15: =IF(V15<>"",0,O15) -> 1600000 | AE15: =IF(OR(S15<>"",TODAY()<F15),0,N15)+IF(AND(Y15<>"",Z15="",TODAY()>=X15),W15,0) -> 1000000 | AF15: =IF(OR(T15<>"",TODAY()<F15),0,IF(Q15<0,Q15,IF(S15<>"",Q15,0))) -> -900000 | AG15: =IF(OR(U15<>"",TODAY()<F15),0,IF(S15<>"",R15,0)) -> 0 | AH15: =IF(OR(V15<>"",TODAY()<F15),0,O15) -> 1600000
A16: =CHAR(160)&"S" -> S | B16: Pályázat 01 | C16: Gipsz Jakab | E16: szerződés összesen: | I16: =SUM(I9:INDIRECT(ADDRESS(ROW()-1,COLUMN()))) -> 150000000 | K16: =SUM(K9:INDIRECT(ADDRESS(ROW()-1,COLUMN()))) -> 150000000 | N16: =SUM(N9:INDIRECT(ADDRESS(ROW()-1,COLUMN()))) -> 7500000 | O16: =SUM(O9:INDIRECT(ADDRESS(ROW()-1,COLUMN()))) -> 14000000 | P16: =SUM(P9:INDIRECT(ADDRESS(ROW()-1,COLUMN()))) -> 7750000 | Q16: =SUM(Q9:INDIRECT(ADDRESS(ROW()-1,COLUMN()))) -> -14250000 | R16: =SUM(R9:INDIRECT(ADDRESS(ROW()-1,COLUMN()))) -> 0 | W16: =SUM(W9:INDIRECT(ADDRESS(ROW()-1,COLUMN()))) -> 50000000 | AA16: =SUM(AA9:INDIRECT(ADDRESS(ROW()-1,COLUMN()))) -> 22500000 | AB16: =SUM(AB9:INDIRECT(ADDRESS(ROW()-1,COLUMN()))) -> -2250000 | AC16: =SUM(AC9:INDIRECT(ADDRESS(ROW()-1,COLUMN()))) -> 0 | AD16: =SUM(AD9:INDIRECT(ADDRESS(ROW()-1,COLUMN()))) -> 4000000 | AE16: =SUM(AE9:INDIRECT(ADDRESS(ROW()-1,COLUMN()))) -> 22500000 | AF16: =SUM(AF9:INDIRECT(ADDRESS(ROW()-1,COLUMN()))) -> -2250000 | AG16: =SUM(AG9:INDIRECT(ADDRESS(ROW()-1,COLUMN()))) -> 0 | AH16: =SUM(AH9:INDIRECT(ADDRESS(ROW()-1,COLUMN()))) -> 4000000
A17: =CHAR(160)&"A" -> A | B17: Pályázat 02 | C17: Géz Géza | D17: 2012-01-01 | E17: 2014-12-31 | F17: 2013-01-01 | G17: 67890 | H17: 0.2
A18: =CHAR(160)&"T" -> T | B18: =OFFSET(B18,-1,0) -> Pályázat 02 | C18: =OFFSET(C18,-1,0) -> Géz Géza | D18: 2012-01-01 | E18: 2014-12-31 | F18: 2013-01-01 | G18: 67890 | H18: 0.2 | I18: 1000000 | J18: 2013-01-01
A19: =CHAR(160)&"B" -> B | B19: =OFFSET(B19,-1,0) -> Pályázat 02 | C19: Géz Géza | D19: 2012-01-01 | E19: 2014-12-31 | F19: 2013-01-01 | G19: 67890 | H19: 0.2 | K19: 1000000 | L19: 2013-06-30 | M19: A13 | N19: =K19*H19 -> 200000 | O19: =K19*IF(M19="",0,VLOOKUP(M19,INDIRECT(Paraméterek!$B$22),2,FALSE)) -> 100000 | P19: =K19*IF(M19="",0,VLOOKUP(M19,INDIRECT(Paraméterek!$B$22),3,FALSE)) -> 70000 | Q19: =MIN(K19*IF(M19="",0,VLOOKUP(M19,INDIRECT(Paraméterek!$B$22),4,FALSE)),N19-O19-P19) -> 0 | R19: =N19-O19-P19-Q19 -> 30000 | S19: 2014-01-01 | T19: 2014-01-01 | U19: 2014-01-01 | V19: 2014-01-01 | W19: 15000000 | X19: 2014-01-01 | Y19: 2014-01-01 | AA19: =IF(S19<>"",0,N19)+IF(AND(Y19<>"",Z19=""),W19,0) -> 15000000 | AB19: =IF(T19<>"",0,Q19) -> 0 | AC19: =IF(U19<>"",0,R19) -> 0 | AD19: =IF(V19<>"",0,O19) -> 0 | AE19: =IF(OR(S19<>"",TODAY()<F19),0,N19)+IF(AND(Y19<>"",Z19="",TODAY()>=X19),W19,0) -> 15000000 | AF19: =IF(OR(T19<>"",TODAY()<F19),0,IF(Q19<0,Q19,IF(S19<>"",Q19,0))) -> 0 | AG19: =IF(OR(U19<>"",TODAY()<F19),0,IF(S19<>"",R19,0)) -> 0 | AH19: =IF(OR(V19<>"",TODAY()<F19),0,O19) -> 0
A20: =CHAR(160)&"T" -> T | B20: Pályázat 02 | C20: Géz Géza | D20: 2012-01-01 | E20: 2014-12-31 | F20: 2013-01-01 | G20: 67890 | H20: 0.2 | I20: 5000000 | J20: 2014-06-30
A21: =CHAR(160)&"B" -> B | B21: Pályázat 02 | C21: Géz Géza | D21: 2012-01-01 | E21: 2014-12-31 | F21: 2013-01-01 | G21: 67890 | H21: 0.2 | K21: 3000000 | L21: 2014-07-01 | M21: A14 | N21: =K21*H21 -> 600000 | O21: =K21*IF(M21="",0,VLOOKUP(M21,INDIRECT(Paraméterek!$B$22),2,FALSE)) -> 240000 | P21: =K21*IF(M21="",0,VLOOKUP(M21,INDIRECT(Paraméterek!$B$22),3,FALSE)) -> 45000 | Q21: =MIN(K21*IF(M21="",0,VLOOKUP(M21,INDIRECT(Paraméterek!$B$22),4,FALSE)),N21-O21-P21) -> 225000 | R21: =N21-O21-P21-Q21 -> 90000 | W21: 15000000 | X21: 2014-01-01 | Y21: 2014-01-01 | AA21: =IF(S21<>"",0,N21)+IF(AND(Y21<>"",Z21=""),W21,0) -> 15600000 | AB21: =IF(T21<>"",0,Q21) -> 225000 | AC21: =IF(U21<>"",0,R21) -> 90000 | AD21: =IF(V21<>"",0,O21) -> 240000 | AE21: =IF(OR(S21<>"",TODAY()<F21),0,N21)+IF(AND(Y21<>"",Z21="",TODAY()>=X21),W21,0) -> 15600000 | AF21: =IF(OR(T21<>"",TODAY()<F21),0,IF(Q21<0,Q21,IF(S21<>"",Q21,0))) -> 0 | AG21: =IF(OR(U21<>"",TODAY()<F21),0,IF(S21<>"",R21,0)) -> 0 | AH21: =IF(OR(V21<>"",TODAY()<F21),0,O21) -> 240000
A22: =CHAR(160)&"B" -> B | B22: Pályázat 02 | C22: Géz Géza | D22: 2012-01-01 | E22: 2014-12-31 | F22: 2013-01-01 | G22: 67890 | H22: 0.2 | K22: 2000000 | L22: 2014-07-10 | M22: A14 | N22: =K22*H22 -> 400000 | O22: =K22*IF(M22="",0,VLOOKUP(M22,INDIRECT(Paraméterek!$B$22),2,FALSE)) -> 160000 | P22: =K22*IF(M22="",0,VLOOKUP(M22,INDIRECT(Paraméterek!$B$22),3,FALSE)) -> 30000 | Q22: =MIN(K22*IF(M22="",0,VLOOKUP(M22,INDIRECT(Paraméterek!$B$22),4,FALSE)),N22-O22-P22) -> 150000 | R22: =N22-O22-P22-Q22 -> 60000 | W22: 15000000 | X22: 2014-01-01 | Y22: 2014-01-01 | Z22: 2014-01-01 | AA22: =IF(S22<>"",0,N22)+IF(AND(Y22<>"",Z22=""),W22,0) -> 400000 | AB22: =IF(T22<>"",0,Q22) -> 150000 | AC22: =IF(U22<>"",0,R22) -> 60000 | AD22: =IF(V22<>"",0,O22) -> 160000 | AE22: =IF(OR(S22<>"",TODAY()<F22),0,N22)+IF(AND(Y22<>"",Z22="",TODAY()>=X22),W22,0) -> 400000 | AF22: =IF(OR(T22<>"",TODAY()<F22),0,IF(Q22<0,Q22,IF(S22<>"",Q22,0))) -> 0 | AG22: =IF(OR(U22<>"",TODAY()<F22),0,IF(S22<>"",R22,0)) -> 0 | AH22: =IF(OR(V22<>"",TODAY()<F22),0,O22) -> 160000
A23: =CHAR(160)&"S" -> S | B23: Pályázat 02 | C23: Géz Géza | E23: szerződés összesen: | I23: =SUM(I17:INDIRECT(ADDRESS(ROW()-1,COLUMN()))) -> 6000000 | K23: =SUM(K17:INDIRECT(ADDRESS(ROW()-1,COLUMN()))) -> 6000000 | N23: =SUM(N17:INDIRECT(ADDRESS(ROW()-1,COLUMN()))) -> 1200000 | O23: =SUM(O17:INDIRECT(ADDRESS(ROW()-1,COLUMN()))) -> 500000 | P23: =SUM(P17:INDIRECT(ADDRESS(ROW()-1,COLUMN()))) -> 145000 | Q23: =SUM(Q17:INDIRECT(ADDRESS(ROW()-1,COLUMN()))) -> 375000 | R23: =SUM(R17:INDIRECT(ADDRESS(ROW()-1,COLUMN()))) -> 180000 | W23: =SUM(W17:INDIRECT(ADDRESS(ROW()-1,COLUMN()))) -> 45000000 | AA23: =SUM(AA17:INDIRECT(ADDRESS(ROW()-1,COLUMN()))) -> 31000000 | AB23: =SUM(AB17:INDIRECT(ADDRESS(ROW()-1,COLUMN()))) -> 375000 | AC23: =SUM(AC17:INDIRECT(ADDRESS(ROW()-1,COLUMN()))) -> 150000 | AD23: =SUM(AD17:INDIRECT(ADDRESS(ROW()-1,COLUMN()))) -> 400000 | AE23: =SUM(AE17:INDIRECT(ADDRESS(ROW()-1,COLUMN()))) -> 31000000 | AF23: =SUM(AF17:INDIRECT(ADDRESS(ROW()-1,COLUMN()))) -> 0 | AG23: =SUM(AG17:INDIRECT(ADDRESS(ROW()-1,COLUMN()))) -> 0 | AH23: =SUM(AH17:INDIRECT(ADDRESS(ROW()-1,COLUMN()))) -> 400000
A24: =CHAR(160)&"M" -> M | B24: Szervezeti egység összesen: | I24: =SUMIF($A7:INDIRECT("$A"&ROW()-1),CHAR(160)&"S",I7:INDIRECT(ADDRESS(ROW()-1,COLUMN()))) -> 156000000 | K24: =SUMIF($A7:INDIRECT("$A"&ROW()-1),CHAR(160)&"S",K7:INDIRECT(ADDRESS(ROW()-1,COLUMN()))) -> 156000000 | N24: =SUMIF($A7:INDIRECT("$A"&ROW()-1),CHAR(160)&"S",N7:INDIRECT(ADDRESS(ROW()-1,COLUMN()))) -> 8700000 | O24: =SUMIF($A7:INDIRECT("$A"&ROW()-1),CHAR(160)&"S",O7:INDIRECT(ADDRESS(ROW()-1,COLUMN()))) -> 14500000 | P24: =SUMIF($A7:INDIRECT("$A"&ROW()-1),CHAR(160)&"S",P7:INDIRECT(ADDRESS(ROW()-1,COLUMN()))) -> 7895000 | Q24: =SUMIF($A7:INDIRECT("$A"&ROW()-1),CHAR(160)&"S",Q7:INDIRECT(ADDRESS(ROW()-1,COLUMN()))) -> -13875000 | R24: =SUMIF($A7:INDIRECT("$A"&ROW()-1),CHAR(160)&"S",R7:INDIRECT(ADDRESS(ROW()-1,COLUMN()))) -> 180000 | W24: =SUMIF($A7:INDIRECT("$A"&ROW()-1),CHAR(160)&"S",W7:INDIRECT(ADDRESS(ROW()-1,COLUMN()))) -> 95000000 | AA24: =SUMIF($A7:INDIRECT("$A"&ROW()-1),CHAR(160)&"S",AA7:INDIRECT(ADDRESS(ROW()-1,COLUMN()))) -> 53500000 | AB24: =SUMIF($A7:INDIRECT("$A"&ROW()-1),CHAR(160)&"S",AB7:INDIRECT(ADDRESS(ROW()-1,COLUMN()))) -> -1875000 | AC24: =SUMIF($A7:INDIRECT("$A"&ROW()-1),CHAR(160)&"S",AC7:INDIRECT(ADDRESS(ROW()-1,COLUMN()))) -> 150000 | AD24: =SUMIF($A7:INDIRECT("$A"&ROW()-1),CHAR(160)&"S",AD7:INDIRECT(ADDRESS(ROW()-1,COLUMN()))) -> 4400000 | AE24: =SUMIF($A7:INDIRECT("$A"&ROW()-1),CHAR(160)&"S",AE7:INDIRECT(ADDRESS(ROW()-1,COLUMN()))) -> 53500000 | AF24: =SUMIF($A7:INDIRECT("$A"&ROW()-1),CHAR(160)&"S",AF7:INDIRECT(ADDRESS(ROW()-1,COLUMN()))) -> -2250000 | AG24: =SUMIF($A7:INDIRECT("$A"&ROW()-1),CHAR(160)&"S",AG7:INDIRECT(ADDRESS(ROW()-1,COLUMN()))) -> 0 | AH24: =SUMIF($A7:INDIRECT("$A"&ROW()-1),CHAR(160)&"S",AH7:INDIRECT(ADDRESS(ROW()-1,COLUMN()))) -> 4400000
B27: Táblázat beillesztő sablon (Excel adatérvényesítéssel)
A29: Rekord | B29: Szerződés azonosító adatok | I29: Bevételek pénzforgalmi adatai | M29: Rezsi befizetések megvalósulása | W29: Önrész megelőlegezés a karról | AA29: Tartozások összesen | AE29: Ebből esedékes tartozás
B30: Rövid név | C30: Témavezető | D30: Futamidő | F30: Rezsi halasztás | G30: Téma- szám | H30: Max. rezsi | I30: Tervezett | K30: Tény | M30: Rezsi- szabály | N30: Rezsi összegek megoszlása | S30: Rezsik átadási időpontja | W30: Előleg összege | X30: Törlesztés határidő | Y30: Átadási időpontok | AA30: szerződés a karnak | AB30: kar | AE30: szerződés a karnak | AF30: kar
D31: kezdete | E31: vége | I31: összeg | J31: időpont | K31: összeg | L31: időpont | N31: levonható | O31: egyetemi | P31: kari | Q31: intézeti | R31: tanszéki | S31: karra | T31: intézetnek | U31: tanszéknek | V31: egyetemnek | Y31: folyósítás | Z31: törlesztés | AB31: intézetnek | AC31: tanszéknek | AD31: egyetemnek | AF31: intézetnek | AG31: tanszéknek | AH31: egyetemnek
A32: A
A33: T | B33: =OFFSET(B33,-1,0) -> 0 | C33: =OFFSET(C33,-1,0) -> 0 | D33: 00:00:00 | E33: 00:00:00 | F33: 00:00:00 | G33: 0 | H33: 0
A34: B | B34: =OFFSET(B34,-1,0) -> 0 | C34: 0 | D34: 00:00:00 | E34: 00:00:00 | F34: 00:00:00 | G34: 0 | H34: 0 | N34: =ROUND(K34*H34,0) -> 0 | O34: =ROUND(K34*IF(M34="",0,VLOOKUP(M34,INDIRECT(Paraméterek!$B$22),2,FALSE)),0) -> 0 | P34: =ROUND(K34*IF(M34="",0,VLOOKUP(M34,INDIRECT(Paraméterek!$B$22),3,FALSE)),0) -> 0 | Q34: =ROUND(MIN(K34*IF(M34="",0,VLOOKUP(M34,INDIRECT(Paraméterek!$B$22),4,FALSE)),N34-O34-P34),0) -> 0 | R34: =N34-O34-P34-Q34 -> 0 | AA34: =IF(S34="",N34,0)+IF(AND(Z34="",Y34<>""),W34,0) -> 0 | AB34: =IF(T34="",Q34,0) -> 0 | AC34: =IF(U34="",R34,0) -> 0 | AD34: =IF(V34="",O34,0) -> 0 | AE34: =IF(AND(S34="",TODAY()>=F34),N34,0)+IF(AND(Z34="",Y34<>"",TODAY()>=X34),W34,0) -> 0 | AF34: =IF(OR(AND(Q34>0,T34="",S34<>""),AND(Q34<0,T34="",TODAY()>=F34)),Q34,0) -> 0 | AG34: =IF(AND(U34="",S34<>""),R34,0) -> 0 | AH34: =IF(AND(V34="",TODAY()>=F34),O34,0) -> 0
A35: S | B35: 0 | C35: 0 | E35: szerződés összesen: | I35: =SUM(I32:INDIRECT(ADDRESS(ROW()-1,COLUMN()))) -> 0 | K35: =SUM(K32:INDIRECT(ADDRESS(ROW()-1,COLUMN()))) -> 0 | N35: =SUM(N32:INDIRECT(ADDRESS(ROW()-1,COLUMN()))) -> 0 | O35: =SUM(O32:INDIRECT(ADDRESS(ROW()-1,COLUMN()))) -> 0 | P35: =SUM(P32:INDIRECT(ADDRESS(ROW()-1,COLUMN()))) -> 0 | Q35: =SUM(Q32:INDIRECT(ADDRESS(ROW()-1,COLUMN()))) -> 0 | R35: =SUM(R32:INDIRECT(ADDRESS(ROW()-1,COLUMN()))) -> 0 | W35: =SUM(W32:INDIRECT(ADDRESS(ROW()-1,COLUMN()))) -> 0 | AA35: =SUM(AA32:INDIRECT(ADDRESS(ROW()-1,COLUMN()))) -> 0 | AB35: =SUM(AB32:INDIRECT(ADDRESS(ROW()-1,COLUMN()))) -> 0 | AC35: =SUM(AC32:INDIRECT(ADDRESS(ROW()-1,COLUMN()))) -> 0 | AD35: =SUM(AD32:INDIRECT(ADDRESS(ROW()-1,COLUMN()))) -> 0 | AE35: =SUM(AE32:INDIRECT(ADDRESS(ROW()-1,COLUMN()))) -> 0 | AF35: =SUM(AF32:INDIRECT(ADDRESS(ROW()-1,COLUMN()))) -> 0 | AG35: =SUM(AG32:INDIRECT(ADDRESS(ROW()-1,COLUMN()))) -> 0 | AH35: =SUM(AH32:INDIRECT(ADDRESS(ROW()-1,COLUMN()))) -> 0
A36: M | B36: Szervezeti egység összesen: | I36: =SUMIF($A31:INDIRECT("$A"&ROW()-1),CHAR(160)&"S",I31:INDIRECT(ADDRESS(ROW()-1,COLUMN()))) -> 0 | K36: =SUMIF($A31:INDIRECT("$A"&ROW()-1),CHAR(160)&"S",K31:INDIRECT(ADDRESS(ROW()-1,COLUMN()))) -> 0 | N36: =SUMIF($A31:INDIRECT("$A"&ROW()-1),CHAR(160)&"S",N31:INDIRECT(ADDRESS(ROW()-1,COLUMN()))) -> 0 | O36: =SUMIF($A31:INDIRECT("$A"&ROW()-1),CHAR(160)&"S",O31:INDIRECT(ADDRESS(ROW()-1,COLUMN()))) -> 0 | P36: =SUMIF($A31:INDIRECT("$A"&ROW()-1),CHAR(160)&"S",P31:INDIRECT(ADDRESS(ROW()-1,COLUMN()))) -> 0 | Q36: =SUMIF($A31:INDIRECT("$A"&ROW()-1),CHAR(160)&"S",Q31:INDIRECT(ADDRESS(ROW()-1,COLUMN()))) -> 0 | R36: =SUMIF($A31:INDIRECT("$A"&ROW()-1),CHAR(160)&"S",R31:INDIRECT(ADDRESS(ROW()-1,COLUMN()))) -> 0 | W36: =SUMIF($A31:INDIRECT("$A"&ROW()-1),CHAR(160)&"S",W31:INDIRECT(ADDRESS(ROW()-1,COLUMN()))) -> 0 | AA36: =SUMIF($A31:INDIRECT("$A"&ROW()-1),CHAR(160)&"S",AA31:INDIRECT(ADDRESS(ROW()-1,COLUMN()))) -> 0 | AB36: =SUMIF($A31:INDIRECT("$A"&ROW()-1),CHAR(160)&"S",AB31:INDIRECT(ADDRESS(ROW()-1,COLUMN()))) -> 0 | AC36: =SUMIF($A31:INDIRECT("$A"&ROW()-1),CHAR(160)&"S",AC31:INDIRECT(ADDRESS(ROW()-1,COLUMN()))) -> 0 | AD36: =SUMIF($A31:INDIRECT("$A"&ROW()-1),CHAR(160)&"S",AD31:INDIRECT(ADDRESS(ROW()-1,COLUMN()))) -> 0 | AE36: =SUMIF($A31:INDIRECT("$A"&ROW()-1),CHAR(160)&"S",AE31:INDIRECT(ADDRESS(ROW()-1,COLUMN()))) -> 0 | AF36: =SUMIF($A31:INDIRECT("$A"&ROW()-1),CHAR(160)&"S",AF31:INDIRECT(ADDRESS(ROW()-1,COLUMN()))) -> 0 | AG36: =SUMIF($A31:INDIRECT("$A"&ROW()-1),CHAR(160)&"S",AG31:INDIRECT(ADDRESS(ROW()-1,COLUMN()))) -> 0 | AH36: =SUMIF($A31:INDIRECT("$A"&ROW()-1),CHAR(160)&"S",AH31:INDIRECT(ADDRESS(ROW()-1,COLUMN()))) -> 0
B39: Szerződés beillesztő sablon (VBA dátumérvényesítéssel)
A41: A
A42: T | B42: =OFFSET(B42,-1,0) -> 0 | C42: =OFFSET(C42,-1,0) -> 0 | D42: 00:00:00 | E42: 00:00:00 | F42: 00:00:00 | G42: 0 | H42: 0
A43: B | B43: =OFFSET(B43,-1,0) -> 0 | C43: 0 | D43: 00:00:00 | E43: 00:00:00 | F43: 00:00:00 | G43: 0 | H43: 0 | N43: =ROUND(K43*H43,0) -> 0 | O43: =ROUND(K43*IF(M43="",0,VLOOKUP(M43,INDIRECT(Paraméterek!$B$22),2,FALSE)),0) -> 0 | P43: =ROUND(K43*IF(M43="",0,VLOOKUP(M43,INDIRECT(Paraméterek!$B$22),3,FALSE)),0) -> 0 | Q43: =ROUND(MIN(K43*IF(M43="",0,VLOOKUP(M43,INDIRECT(Paraméterek!$B$22),4,FALSE)),N43-O43-P43),0) -> 0 | R43: =N43-O43-P43-Q43 -> 0 | AA43: =IF(S43="",N43,0)+IF(AND(Z43="",Y43<>""),W43,0) -> 0 | AB43: =IF(T43="",Q43,0) -> 0 | AC43: =IF(U43="",R43,0) -> 0 | AD43: =IF(V43="",O43,0) -> 0 | AE43: =IF(AND(S43="",TODAY()>=F43),N43,0)+IF(AND(Z43="",Y43<>"",TODAY()>=X43),W43,0) -> 0 | AF43: =IF(OR(AND(Q43>0,T43="",S43<>""),AND(Q43<0,T43="",TODAY()>=F43)),Q43,0) -> 0 | AG43: =IF(AND(U43="",S43<>""),R43,0) -> 0 | AH43: =IF(AND(V43="",TODAY()>=F43),O43,0) -> 0
A44: S | B44: 0 | C44: 0 | E44: szerződés összesen: | I44: =SUM(I41:INDIRECT(ADDRESS(ROW()-1,COLUMN()))) -> 0 | K44: =SUM(K41:INDIRECT(ADDRESS(ROW()-1,COLUMN()))) -> 0 | N44: =SUM(N41:INDIRECT(ADDRESS(ROW()-1,COLUMN()))) -> 0 | O44: =SUM(O41:INDIRECT(ADDRESS(ROW()-1,COLUMN()))) -> 0 | P44: =SUM(P41:INDIRECT(ADDRESS(ROW()-1,COLUMN()))) -> 0 | Q44: =SUM(Q41:INDIRECT(ADDRESS(ROW()-1,COLUMN()))) -> 0 | R44: =SUM(R41:INDIRECT(ADDRESS(ROW()-1,COLUMN()))) -> 0 | W44: =SUM(W41:INDIRECT(ADDRESS(ROW()-1,COLUMN()))) -> 0 | AA44: =SUM(AA41:INDIRECT(ADDRESS(ROW()-1,COLUMN()))) -> 0 | AB44: =SUM(AB41:INDIRECT(ADDRESS(ROW()-1,COLUMN()))) -> 0 | AC44: =SUM(AC41:INDIRECT(ADDRESS(ROW()-1,COLUMN()))) -> 0 | AD44: =SUM(AD41:INDIRECT(ADDRESS(ROW()-1,COLUMN()))) -> 0 | AE44: =SUM(AE41:INDIRECT(ADDRESS(ROW()-1,COLUMN()))) -> 0 | AF44: =SUM(AF41:INDIRECT(ADDRESS(ROW()-1,COLUMN()))) -> 0 | AG44: =SUM(AG41:INDIRECT(ADDRESS(ROW()-1,COLUMN()))) -> 0 | AH44: =SUM(AH41:INDIRECT(ADDRESS(ROW()-1,COLUMN()))) -> 0
B47: Tervezett bevételi rekord beillesztő sablon (VBA dátumérvényesítéssel)
A49: T | B49: =OFFSET(B49,-1,0) -> 0 | C49: =OFFSET(C49,-1,0) -> 0 | D49: 00:00:00 | E49: 00:00:00 | F49: 00:00:00 | G49: 0 | H49: 0
A50: B | B50: =OFFSET(B50,-1,0) -> 0 | C50: 0 | D50: 00:00:00 | E50: 00:00:00 | F50: 00:00:00 | G50: 0 | H50: 0 | N50: =ROUND(K50*H50,0) -> 0 | O50: =ROUND(K50*IF(M50="",0,VLOOKUP(M50,INDIRECT(Paraméterek!$B$22),2,FALSE)),0) -> 0 | P50: =ROUND(K50*IF(M50="",0,VLOOKUP(M50,INDIRECT(Paraméterek!$B$22),3,FALSE)),0) -> 0 | Q50: =ROUND(MIN(K50*IF(M50="",0,VLOOKUP(M50,INDIRECT(Paraméterek!$B$22),4,FALSE)),N50-O50-P50),0) -> 0 | R50: =N50-O50-P50-Q50 -> 0 | AA50: =IF(S50="",N50,0)+IF(AND(Z50="",Y50<>""),W50,0) -> 0 | AB50: =IF(T50="",Q50,0) -> 0 | AC50: =IF(U50="",R50,0) -> 0 | AD50: =IF(V50="",O50,0) -> 0 | AE50: =IF(AND(S50="",TODAY()>=F50),N50,0)+IF(AND(Z50="",Y50<>"",TODAY()>=X50),W50,0) -> 0 | AF50: =IF(OR(AND(Q50>0,T50="",S50<>""),AND(Q50<0,T50="",TODAY()>=F50)),Q50,0) -> 0 | AG50: =IF(AND(U50="",S50<>""),R50,0) -> 0 | AH50: =IF(AND(V50="",TODAY()>=F50),O50,0) -> 0
B53: Bevételi rekord beillesztő sablon (VBA dátumérvényesítéssel)
A55: B | B55: =OFFSET(B55,-1,0) -> 0 | C55: 0 | D55: 00:00:00 | E55: 00:00:00 | F55: 00:00:00 | G55: 0 | H55: 0 | N55: =ROUND(K55*H55,0) -> 0 | O55: =ROUND(K55*IF(M55="",0,VLOOKUP(M55,INDIRECT(Paraméterek!$B$22),2,FALSE)),0) -> 0 | P55: =ROUND(K55*IF(M55="",0,VLOOKUP(M55,INDIRECT(Paraméterek!$B$22),3,FALSE)),0) -> 0 | Q55: =ROUND(MIN(K55*IF(M55="",0,VLOOKUP(M55,INDIRECT(Paraméterek!$B$22),4,FALSE)),N55-O55-P55),0) -> 0 | R55: =N55-O55-P55-Q55 -> 0 | AA55: =IF(S55="",N55,0)+IF(AND(Z55="",Y55<>""),W55,0) -> 0 | AB55: =IF(T55="",Q55,0) -> 0 | AC55: =IF(U55="",R55,0) -> 0 | AD55: =IF(V55="",O55,0) -> 0 | AE55: =IF(AND(S55="",TODAY()>=F55),N55,0)+IF(AND(Z55="",Y55<>"",TODAY()>=X55),W55,0) -> 0 | AF55: =IF(OR(AND(Q55>0,T55="",S55<>""),AND(Q55<0,T55="",TODAY()>=F55)),Q55,0) -> 0 | AG55: =IF(AND(U55="",S55<>""),R55,0) -> 0 | AH55: =IF(AND(V55="",TODAY()>=F55),O55,0) -> 0

Sheet Mintalap (hidden)
B1: Szervezeti egység rezsi nyilvántartása
B2: Az egység neve:
B3: MGR kódja:
A5: Rekord | B5: Szerződés azonosító adatok | I5: Bevételek pénzforgalmi adatai | M5: Rezsi befizetések megvalósulása | W5: Önrész megelőlegezés a karról | AA5: Tartozások összesen | AE5: Ebből esedékes tartozás
B6: Rövid név | C6: Témavezető | D6: Futamidő | F6: Rezsi halasztás | G6: Téma- szám | H6: Max. rezsi | I6: Tervezett | K6: Tény | M6: Rezsi- szabály | N6: Rezsi összegek megoszlása | S6: Rezsik átadási időpontja | W6: Előleg összege | X6: Törlesztés határidő | Y6: Átadási időpontok | AA6: szerződés a karnak | AB6: kar | AE6: szerződés a karnak | AF6: kar
D7: kezdete | E7: vége | I7: összeg | J7: időpont | K7: összeg | L7: időpont | N7: levonható | O7: egyetemi | P7: kari | Q7: intézeti | R7: tanszéki | S7: karra | T7: intézetnek | U7: tanszéknek | V7: egyetemnek | Y7: folyósítás | Z7: törlesztés | AB7: intézetnek | AC7: tanszéknek | AD7: egyetemnek | AF7: intézetnek | AG7: tanszéknek | AH7: egyetemnek
A8: A
A9: T | B9: =OFFSET(B9,-1,0) -> 0 | C9: =OFFSET(C9,-1,0) -> 0 | D9: 00:00:00 | E9: 00:00:00 | F9: 00:00:00 | G9: 0 | H9: 0
A10: B | B10: =OFFSET(B10,-1,0) -> 0 | C10: 0 | D10: 00:00:00 | E10: 00:00:00 | F10: 00:00:00 | G10: 0 | H10: 0 | N10: =ROUND(K10*H10,0) -> 0 | O10: =ROUND(K10*IF(M10="",0,VLOOKUP(M10,INDIRECT(Paraméterek!$B$22),2,FALSE)),0) -> 0 | P10: =ROUND(K10*IF(M10="",0,VLOOKUP(M10,INDIRECT(Paraméterek!$B$22),3,FALSE)),0) -> 0 | Q10: =ROUND(MIN(K10*IF(M10="",0,VLOOKUP(M10,INDIRECT(Paraméterek!$B$22),4,FALSE)),N10-O10-P10),0) -> 0 | R10: =N10-O10-P10-Q10 -> 0 | AA10: =IF(S10="",N10,0)+IF(AND(Z10="",Y10<>""),W10,0) -> 0 | AB10: =IF(T10="",Q10,0) -> 0 | AC10: =IF(U10="",R10,0) -> 0 | AD10: =IF(V10="",O10,0) -> 0 | AE10: =IF(AND(S10="",TODAY()>=F10),N10,0)+IF(AND(Z10="",Y10<>"",TODAY()>=X10),W10,0) -> 0 | AF10: =IF(OR(AND(Q10>0,T10="",S10<>""),AND(Q10<0,T10="",TODAY()>=F10)),Q10,0) -> 0 | AG10: =IF(AND(U10="",S10<>""),R10,0) -> 0 | AH10: =IF(AND(V10="",TODAY()>=F10),O10,0) -> 0
A11: S | B11: 0 | C11: 0 | E11: szerződés összesen: | I11: =SUM(I8:INDIRECT(ADDRESS(ROW()-1,COLUMN()))) -> 0 | K11: =SUM(K8:INDIRECT(ADDRESS(ROW()-1,COLUMN()))) -> 0 | N11: =SUM(N8:INDIRECT(ADDRESS(ROW()-1,COLUMN()))) -> 0 | O11: =SUM(O8:INDIRECT(ADDRESS(ROW()-1,COLUMN()))) -> 0 | P11: =SUM(P8:INDIRECT(ADDRESS(ROW()-1,COLUMN()))) -> 0 | Q11: =SUM(Q8:INDIRECT(ADDRESS(ROW()-1,COLUMN()))) -> 0 | R11: =SUM(R8:INDIRECT(ADDRESS(ROW()-1,COLUMN()))) -> 0 | W11: =SUM(W8:INDIRECT(ADDRESS(ROW()-1,COLUMN()))) -> 0 | AA11: =SUM(AA8:INDIRECT(ADDRESS(ROW()-1,COLUMN()))) -> 0 | AB11: =SUM(AB8:INDIRECT(ADDRESS(ROW()-1,COLUMN()))) -> 0 | AC11: =SUM(AC8:INDIRECT(ADDRESS(ROW()-1,COLUMN()))) -> 0 | AD11: =SUM(AD8:INDIRECT(ADDRESS(ROW()-1,COLUMN()))) -> 0 | AE11: =SUM(AE8:INDIRECT(ADDRESS(ROW()-1,COLUMN()))) -> 0 | AF11: =SUM(AF8:INDIRECT(ADDRESS(ROW()-1,COLUMN()))) -> 0 | AG11: =SUM(AG8:INDIRECT(ADDRESS(ROW()-1,COLUMN()))) -> 0 | AH11: =SUM(AH8:INDIRECT(ADDRESS(ROW()-1,COLUMN()))) -> 0
A12: M | B12: Szervezeti egység összesen: | I12: =SUMIF($A7:INDIRECT("$A"&ROW()-1),CHAR(160)&"S",I7:INDIRECT(ADDRESS(ROW()-1,COLUMN()))) -> 0 | K12: =SUMIF($A7:INDIRECT("$A"&ROW()-1),CHAR(160)&"S",K7:INDIRECT(ADDRESS(ROW()-1,COLUMN()))) -> 0 | N12: =SUMIF($A7:INDIRECT("$A"&ROW()-1),CHAR(160)&"S",N7:INDIRECT(ADDRESS(ROW()-1,COLUMN()))) -> 0 | O12: =SUMIF($A7:INDIRECT("$A"&ROW()-1),CHAR(160)&"S",O7:INDIRECT(ADDRESS(ROW()-1,COLUMN()))) -> 0 | P12: =SUMIF($A7:INDIRECT("$A"&ROW()-1),CHAR(160)&"S",P7:INDIRECT(ADDRESS(ROW()-1,COLUMN()))) -> 0 | Q12: =SUMIF($A7:INDIRECT("$A"&ROW()-1),CHAR(160)&"S",Q7:INDIRECT(ADDRESS(ROW()-1,COLUMN()))) -> 0 | R12: =SUMIF($A7:INDIRECT("$A"&ROW()-1),CHAR(160)&"S",R7:INDIRECT(ADDRESS(ROW()-1,COLUMN()))) -> 0 | W12: =SUMIF($A7:INDIRECT("$A"&ROW()-1),CHAR(160)&"S",W7:INDIRECT(ADDRESS(ROW()-1,COLUMN()))) -> 0 | AA12: =SUMIF($A7:INDIRECT("$A"&ROW()-1),CHAR(160)&"S",AA7:INDIRECT(ADDRESS(ROW()-1,COLUMN()))) -> 0 | AB12: =SUMIF($A7:INDIRECT("$A"&ROW()-1),CHAR(160)&"S",AB7:INDIRECT(ADDRESS(ROW()-1,COLUMN()))) -> 0 | AC12: =SUMIF($A7:INDIRECT("$A"&ROW()-1),CHAR(160)&"S",AC7:INDIRECT(ADDRESS(ROW()-1,COLUMN()))) -> 0 | AD12: =SUMIF($A7:INDIRECT("$A"&ROW()-1),CHAR(160)&"S",AD7:INDIRECT(ADDRESS(ROW()-1,COLUMN()))) -> 0 | AE12: =SUMIF($A7:INDIRECT("$A"&ROW()-1),CHAR(160)&"S",AE7:INDIRECT(ADDRESS(ROW()-1,COLUMN()))) -> 0 | AF12: =SUMIF($A7:INDIRECT("$A"&ROW()-1),CHAR(160)&"S",AF7:INDIRECT(ADDRESS(ROW()-1,COLUMN()))) -> 0 | AG12: =SUMIF($A7:INDIRECT("$A"&ROW()-1),CHAR(160)&"S",AG7:INDIRECT(ADDRESS(ROW()-1,COLUMN()))) -> 0 | AH12: =SUMIF($A7:INDIRECT("$A"&ROW()-1),CHAR(160)&"S",AH7:INDIRECT(ADDRESS(ROW()-1,COLUMN()))) -> 0

Sheet MintaÖsszSor (hidden)
B1: Az összegző munkalap mintasorai
B3: Az alábbi táblázat azokat a mintasorokat tartalmazza, amelyeket a nyilvántartó munkalapokat összesítő makró az "Összesítés" munkalapra másol. Ezt a munkalapot nem szabad megváltoztatni, emiatt célszerű a munkalapot rejtett, vagy "very hidden" állapotban tartani. Összegző rekordok prototípusai Az "A" oszlopban található sortípus jelzés különböző szerepű összegző rekordokat azonosít: "N": névrekord, az összegzésben résztvevő szervezeti egység nevét és MGR kódját tartalmazza "P": projekt rekord, a szervezeti egység rezsi nyilvántartó lapjának minden szerződéséhez egy ilyen rekord tartozik, az ottani "A" és "S" rekordok összeszerkesztett változata "M": mindösszesen, az adott szervezeti egység összes szerződésének bevételi, rezsi és tartozási összegei, a rezsi nyilvántartó lapok "M" rekordjának tömörített változata "E": egyesített összeg rekord, a nyilvántartásban szereplő összes szervezeti egység "M" rekordjainak összege (Az "A" oszlopban valójában egy kétkarakteres szöveg áll, KARAKTER(160)&"c" formátumban, ahol a "c" karakter a fenti N, P, M vagy E betűk egyike.)
A5: =CHAR(160)&"Rekord" -> Rekord | B5: Szerződés azonosító adatok | I5: Bevételek összesen | K5: Rezsi összegek megoszlása | P5: Önrész | Q5: Tartozások összesen | U5: Ebből esedékes tartozás
B6: Rövid név | C6: Témavezető | D6: Futamidő | F6: Rezsi halasztás | G6: Téma- szám | H6: Max. rezsi | I6: Tervezett | J6: Tény | K6: Levonható | L6: Egyetemi | M6: Kari | N6: Intézeti | O6: Tanszéki | P6: Összes előleg | Q6: Szerződés a karnak | R6: Kar | U6: Szerződés a karnak | V6: Kar
D7: kezdete | E7: vége | R7: intézetnek | S7: tanszéknek | T7: egyetemnek | V7: intézetnek | W7: tanszéknek | X7: egyetemnek
A9: =CHAR(160)&"N" -> N | B9: TTK Dékán (közös kari kiadások) | F9: Kód: 332
A11: =CHAR(160)&"P" -> P
A12: =CHAR(160)&"P" -> P
A14: =CHAR(160)&"M" -> M | B14: TTK Dékán (közös kari kiadások) | F14: Összesen:
A16: =CHAR(160)&"N" -> N | B16: TTK Dékán (közös kari kiadások) | F16: Kód: 332
A18: =CHAR(160)&"P" -> P
A19: =CHAR(160)&"P" -> P
A21: =CHAR(160)&"M" -> M | B21: TTK Dékán (közös kari kiadások) | F21: Összesen:
A23: =CHAR(160)&"E" -> E | B23: Szervezeti egységek összesen | I23: =SUMIF($A7:INDIRECT("$A"&ROW()-1),CHAR(160)&"M",I7:INDIRECT(ADDRESS(ROW()-1,COLUMN()))) -> 0 | J23: =SUMIF($A7:INDIRECT("$A"&ROW()-1),CHAR(160)&"M",J7:INDIRECT(ADDRESS(ROW()-1,COLUMN()))) -> 0 | K23: =SUMIF($A7:INDIRECT("$A"&ROW()-1),CHAR(160)&"M",K7:INDIRECT(ADDRESS(ROW()-1,COLUMN()))) -> 0 | L23: =SUMIF($A7:INDIRECT("$A"&ROW()-1),CHAR(160)&"M",L7:INDIRECT(ADDRESS(ROW()-1,COLUMN()))) -> 0 | M23: =SUMIF($A7:INDIRECT("$A"&ROW()-1),CHAR(160)&"M",M7:INDIRECT(ADDRESS(ROW()-1,COLUMN()))) -> 0 | N23: =SUMIF($A7:INDIRECT("$A"&ROW()-1),CHAR(160)&"M",N7:INDIRECT(ADDRESS(ROW()-1,COLUMN()))) -> 0 | O23: =SUMIF($A7:INDIRECT("$A"&ROW()-1),CHAR(160)&"M",O7:INDIRECT(ADDRESS(ROW()-1,COLUMN()))) -> 0 | P23: =SUMIF($A7:INDIRECT("$A"&ROW()-1),CHAR(160)&"M",P7:INDIRECT(ADDRESS(ROW()-1,COLUMN()))) -> 0 | Q23: =SUMIF($A7:INDIRECT("$A"&ROW()-1),CHAR(160)&"M",Q7:INDIRECT(ADDRESS(ROW()-1,COLUMN()))) -> 0 | R23: =SUMIF($A7:INDIRECT("$A"&ROW()-1),CHAR(160)&"M",R7:INDIRECT(ADDRESS(ROW()-1,COLUMN()))) -> 0 | S23: =SUMIF($A7:INDIRECT("$A"&ROW()-1),CHAR(160)&"M",S7:INDIRECT(ADDRESS(ROW()-1,COLUMN()))) -> 0 | T23: =SUMIF($A7:INDIRECT("$A"&ROW()-1),CHAR(160)&"M",T7:INDIRECT(ADDRESS(ROW()-1,COLUMN()))) -> 0 | U23: =SUMIF($A7:INDIRECT("$A"&ROW()-1),CHAR(160)&"M",U7:INDIRECT(ADDRESS(ROW()-1,COLUMN()))) -> 0 | V23: =SUMIF($A7:INDIRECT("$A"&ROW()-1),CHAR(160)&"M",V7:INDIRECT(ADDRESS(ROW()-1,COLUMN()))) -> 0 | W23: =SUMIF($A7:INDIRECT("$A"&ROW()-1),CHAR(160)&"M",W7:INDIRECT(ADDRESS(ROW()-1,COLUMN()))) -> 0 | X23: =SUMIF($A7:INDIRECT("$A"&ROW()-1),CHAR(160)&"M",X7:INDIRECT(ADDRESS(ROW()-1,COLUMN()))) -> 0
B27: Szervezeti egység azonosító blokk beillesztő sablon
A30: N
B35: Szervezeti egység összegző blokk beillesztő sablon
A38: M | F38: Összesen:
B42: Projekt rekord beillesztő sablon
A44: P

Sheet MintaÖsszes (hidden)
B2: Rezsi nyilvántartás
B3: Szervezeti egységek összesítő lapja
A5: Rekord | B5: Szerződés azonosító adatok | I5: Bevételek összesen | K5: Rezsi összegek megoszlása | P5: Önrész | Q5: Tartozások összesen | U5: Ebből esedékes tartozás
B6: Rövid név | C6: Témavezető | D6: Futamidő | F6: Rezsi halasztás | G6: Téma- szám | H6: Max. rezsi | I6: Tervezett | J6: Tény | K6: Levonható | L6: Egyetemi | M6: Kari | N6: Intézeti | O6: Tanszéki | P6: Összes előleg | Q6: Szerződés a karnak | R6: Kar | U6: Szerződés a karnak | V6: Kar
D7: kezdete | E7: vége | R7: intézetnek | S7: tanszéknek | T7: egyetemnek | V7: intézetnek | W7: tanszéknek | X7: egyetemnek
A9: E | B9: Szervezeti egységek összesen | I9: =SUMIF($A7:INDIRECT("$A"&ROW()-1),CHAR(160)&"M",I7:INDIRECT(ADDRESS(ROW()-1,COLUMN()))) -> 0 | J9: =SUMIF($A7:INDIRECT("$A"&ROW()-1),CHAR(160)&"M",J7:INDIRECT(ADDRESS(ROW()-1,COLUMN()))) -> 0 | K9: =SUMIF($A7:INDIRECT("$A"&ROW()-1),CHAR(160)&"M",K7:INDIRECT(ADDRESS(ROW()-1,COLUMN()))) -> 0 | L9: =SUMIF($A7:INDIRECT("$A"&ROW()-1),CHAR(160)&"M",L7:INDIRECT(ADDRESS(ROW()-1,COLUMN()))) -> 0 | M9: =SUMIF($A7:INDIRECT("$A"&ROW()-1),CHAR(160)&"M",M7:INDIRECT(ADDRESS(ROW()-1,COLUMN()))) -> 0 | N9: =SUMIF($A7:INDIRECT("$A"&ROW()-1),CHAR(160)&"M",N7:INDIRECT(ADDRESS(ROW()-1,COLUMN()))) -> 0 | O9: =SUMIF($A7:INDIRECT("$A"&ROW()-1),CHAR(160)&"M",O7:INDIRECT(ADDRESS(ROW()-1,COLUMN()))) -> 0 | P9: =SUMIF($A7:INDIRECT("$A"&ROW()-1),CHAR(160)&"M",P7:INDIRECT(ADDRESS(ROW()-1,COLUMN()))) -> 0 | Q9: =SUMIF($A7:INDIRECT("$A"&ROW()-1),CHAR(160)&"M",Q7:INDIRECT(ADDRESS(ROW()-1,COLUMN()))) -> 0 | R9: =SUMIF($A7:INDIRECT("$A"&ROW()-1),CHAR(160)&"M",R7:INDIRECT(ADDRESS(ROW()-1,COLUMN()))) -> 0 | S9: =SUMIF($A7:INDIRECT("$A"&ROW()-1),CHAR(160)&"M",S7:INDIRECT(ADDRESS(ROW()-1,COLUMN()))) -> 0 | T9: =SUMIF($A7:INDIRECT("$A"&ROW()-1),CHAR(160)&"M",T7:INDIRECT(ADDRESS(ROW()-1,COLUMN()))) -> 0 | U9: =SUMIF($A7:INDIRECT("$A"&ROW()-1),CHAR(160)&"M",U7:INDIRECT(ADDRESS(ROW()-1,COLUMN()))) -> 0 | V9: =SUMIF($A7:INDIRECT("$A"&ROW()-1),CHAR(160)&"M",V7:INDIRECT(ADDRESS(ROW()-1,COLUMN()))) -> 0 | W9: =SUMIF($A7:INDIRECT("$A"&ROW()-1),CHAR(160)&"M",W7:INDIRECT(ADDRESS(ROW()-1,COLUMN()))) -> 0 | X9: =SUMIF($A7:INDIRECT("$A"&ROW()-1),CHAR(160)&"M",X7:INDIRECT(ADDRESS(ROW()-1,COLUMN()))) -> 0
